Cogmind - Beta 11.1 @@@ ROGUE MODE // 2022.07.07 @ 01:10:41 Player: Pogmind Result: Self-destructed Performance ------------- Evolutions (4) 2000 Regions Visited (17) 3400 Robots Destroyed (213) 1065 Value Destroyed (9911) 9911 Prototype IDs (30) 600 Alien Tech Used (0) 0 Bonus (4399) 4399 TOTAL SCORE: 21375 Bonus ------- High Alert Combat Kills 565 Follower Combat Kills 1357 Entered Garrisons 800 Used RIF Installer 2000 Aligned with FarCom 300 Friendly Fire -623 Cogmind --------- Core Integrity 600/850 Matter 184/300 Energy 100/100 System Corruption 14% Temperature Cool (0) Movement Core (250) Ox4 Location -6/Factory Parts ------- > --- POWER (1) -------- (None) > --- PROPULSION (4) --- Armored Huge Wheel > --- UTILITY (6) ------ Improved Armor Integrity Analyzer Advanced Drone Bay (2/2) > --- WEAPON (4) ------- Compact Ion Cannon > --- INVENTORY (5) ---- Reinforced Antimatter Reactor Cloak of Protection Heavy Machine Gun Long-range Missile Launcher Peak State ------------ > --- POWER ------------ Antimatter Reactor > --- PROPULSION ------- Armored Huge Wheel Armored Huge Wheel > --- UTILITY ---------- Improved Cooling System Improved Cooling System Improved Cooling System Humpback Layered Medium Armor Plating > --- WEAPON ----------- Plasma Rifle Plasma Rifle Plasma Rifle Plasma Rifle > --- INVENTORY -------- Reinforced Deuterium Engine Armored Huge Wheel Improved Cooling System Huge Storage Unit Improved Salvage Targeting Computer Advanced Targeting Computer Recoil Nullifier Recoil Nullifier Recoil Nullifier Cloak of Protection Improved Utility Shielding Layered Medium Armor Plating Layered Medium Armor Plating Improved Shield Generator Authchip [Propulsion] Authchip [Propulsion] Relay Coupler [NC] Relay Coupler [NC] Relay Coupler [Grunt] Relay Coupler [Hunter] Guided Plasma Cannon Heavy Machine Gun Heavy Machine Gun Heavy Machine Gun Heavy Machine Gun Enhanced Gauss Cannon Enhanced Gauss Cannon Enhanced Gauss Cannon Enhanced Gauss Cannon Long-range Missile Launcher Long-range Missile Launcher Heavy Flail [Rating: 77] Favorites ----------- Power Reinforced Deuterium Engine Engine Reinforced Deuterium Engine Power Core Micro Nuclear Core Reactor Antimatter Reactor Propulsion Light Treads Treads Light Treads Leg Aluminum Leg Wheel Armored Huge Wheel Hover Unit Aerolev Unit Utility Improved Medium Armor Plating Device Improved Cooling System Storage Huge Storage Unit Processor Advanced Targeting Computer Hackware Relay Coupler [Grunt] Protection Improved Medium Armor Plating Weapon Plasma Rifle Energy Gun Plasma Rifle Energy Cannon Beam Cannon Ballistic Gun Light Assault Rifle Ballistic Cannon Gauss Cannon Launcher Long-range Missile Launcher Special Weapon Remote Datajack Impact Weapon Heavy Flail Build | -11 -10 -10 -10 -9 -8 -8 -8 -8 -7 -7 -7 -7 -7 -7 -6 -6 -6 ------- Run | Scr Mat Min Exi Min Mat Gar Mat Gar Fac Was Fac Gar Fac Gar Fac Was Fac Slots Evolved 8 | . . . . . 4 . . . 2 . . . . . 2 . . Power . | . . . . . . . . . . . . . . . . . . Propulsion 2 | . . . . . . . . . . . . . . . 2 . . Utility 4 | . . . . . 4 . . . . . . . . . . . . Weapon 2 | . . . . . . . . . 2 . . . . . . . . Parts Attached 329 | 7 3 2 . 4 38 48 43 37 2 7 18 52 12 33 14 9 . Power 10 | 1 . 1 . . 1 2 1 . . . . 1 . . 3 . . Engine 7 | 1 . 1 . . 1 1 1 . . . . 1 . . 1 . . Core 1 | . . . . . . 1 . . . . . . . . . . . Reactor 2 | . . . . . . . . . . . . . . . 2 . . Propulsion 40 | 2 . 1 . . 5 7 9 5 . . 2 1 . 6 1 1 . Treads 16 | 2 . 1 . . 4 5 2 2 . . . . . . . . . Leg 1 | . . . . . . . . . . . . . . 1 . . . Wheel 22 | . . . . . 1 2 6 3 . . 2 1 . 5 1 1 . Hover 1 | . . . . . . . 1 . . . . . . . . . . Flight . | . . . . . . . . . . . . . . . . . . Utility 153 | 2 2 . . 2 17 24 14 15 . 2 8 31 7 18 6 5 . Device 56 | 1 . . . 1 7 5 2 4 . 1 1 13 4 11 4 2 . Storage 14 | 1 2 . . 1 1 2 . 2 . . . 2 . 2 . 1 . Processor 5 | . . . . . 1 . . 1 . . . 1 . . 1 1 . Hackware 30 | . . . . . . 4 4 2 . 1 3 9 3 4 . . . Protection 48 | . . . . . 8 13 8 6 . . 4 6 . 1 1 1 . Artifact . | . . . . . . . . . . . . . . . . . . Weapon 126 | 2 1 . . 2 15 15 19 17 2 5 8 19 5 9 4 3 . Energy Gun 37 | . . . . . 4 2 1 3 2 2 5 11 2 4 . 1 . Energy Cannon 22 | . . . . 2 7 6 . 2 . . . . 1 . 2 2 . Ballistic Gun 6 | 2 1 . . . . 2 . . . . . . . 1 . . . Ballistic Cannon 8 | . . . . . 1 . 3 4 . . . . . . . . . Launcher 12 | . . . . . 2 2 1 4 . . 1 . . . 2 . . Special Weapon 28 | . . . . . . 2 7 1 . 3 2 8 2 3 . . . Impact Weapon 13 | . . . . . 1 1 7 3 . . . . . 1 . . . Slashing Weapon . | . . . . . . . . . . . . . . . . . . Piercing Weapon . | . . . . . . . . . . . . . . . . . . Special Melee Weapon . | . . . . . . . . . . . . . . . . . . Unidentified Prototypes 4 | . . . . . 2 . 1 . . . . . . . . 1 . Parts Lost 34 | . 1 2 . . 9 8 . . . . . 2 . 1 3 8 . Power 7 | . . 1 . . 1 2 . . . . . 1 . . 1 1 . Propulsion 7 | . . 1 . . 4 . . . . . . . . . . 2 . Utility 14 | . . . . . 3 6 . . . . . 1 . . 1 3 . Weapon 6 | . 1 . . . 1 . . . . . . . . 1 1 2 . Highest Loss Streak 8 | . 1 1 . . 2 4 . . . . . 1 . 1 1 8 . To Critical Strikes . | . . . . . . . . . . . . . . . . . . Average Slot Usage (%) 89 | . 100 99 100 100 94 90 80 98 84 84 83 81 75 80 75 47 . Engine 8 | . 14 13 14 14 9 8 9 9 7 7 7 7 7 7 4 . . Treads 9 | . 28 28 28 28 14 11 . 9 . . . . . . . . . Wheel 4 | . . . . . 1 3 8 7 7 7 7 7 7 7 13 10 . Device 12 | . 14 14 14 14 18 9 6 5 7 13 9 13 13 16 15 10 . Storage 8 | . 14 14 14 14 9 9 9 9 7 7 7 7 7 7 6 3 . Processor 2 | . . . . . . . . 8 7 7 7 6 . . . 3 . Hackware 2 | . . . . . . 6 6 2 . 6 9 3 . 2 . . . Protection 16 | . . . . . 22 22 23 26 15 1 2 4 7 7 6 2 . Energy Gun 8 | . . . . . 2 . . . 30 25 28 27 28 29 25 9 . Energy Cannon 5 | . . . . 27 14 11 . 1 . . . . . . . 2 . Ballistic Gun 2 | . 28 28 28 . . . . . . . . . . . . . . Ballistic Cannon 2 | . . . . . . . 10 9 . . . . . . . . . Special Weapon 1 | . . . . . . 1 1 2 . 4 1 1 1 . . . . Impact Weapon 1 | . . . . . . 3 5 3 . . . . . . . . . Naked Turns . | . . . . . . . . . . . . . . . . . . Heaviest Build 333 | 14 28 28 28 92 241 241 257 257 244 244 238 255 255 333 255 249 . Greatest Support 56 | 40 40 40 40 40 40 40 28 40 28 28 28 28 28 28 56 56 . Greatest Overweight (x) 12 | . . . . 2 8 8 12 11 8 8 8 9 9 11 4 4 . Average Overweight (x) 4 | . . . . 1 3 4 8 8 8 8 8 5 8 5 4 . . Largest Inventory Capacity 35 | 8 15 15 15 25 35 35 35 35 35 35 35 35 35 35 35 35 . Average Capacity 27 | 6 11 15 15 22 27 26 35 25 35 35 35 28 35 29 35 19 . Most Carried 35 | 4 14 14 15 25 35 35 35 35 34 34 35 35 35 35 35 34 . Average Carried 25 | 2 8 13 13 18 26 23 34 23 33 33 34 27 34 28 34 18 . Final Capacity 35 | 8 15 15 15 25 35 35 35 35 35 35 35 35 35 35 35 5 5 Final Carried 35 | 4 14 12 15 25 35 35 35 35 33 34 34 35 35 35 33 4 4 Class Distribution -------------------- 21% | Scavenger-Mutant 19% | Bothacker-Mutant 19% | Mutant 19% | Hauler-Mutant 7% | Hauler-Tank 6% | Bothacker-Gunner Dominant Class ---------------- Mutant | -10/Materials Mutant | -10/Mines Mutant | -10/Exiles Mutant | -9/Mines Scavenger-Mutant | -8/Materials Bothacker-Mutant | -8/Garrison Hauler-Mutant | -8/Materials Bothacker-Mutant | -8/Garrison Bothacker-Tank | -7/Factory Bothacker-Mutant | -7/Waste Bothacker-Gunner | -7/Factory Bothacker-Gunner | -7/Garrison Hauler-Tank | -7/Factory Hauler-Tank | -7/Garrison Hauler-Tank | -6/Factory Mutant | -6/Waste Mutant | -6/Factory Resources | -11 -10 -10 -10 -9 -8 -8 -8 -8 -7 -7 -7 -7 -7 -7 -6 -6 -6 ----------- Run | Scr Mat Min Exi Min Mat Gar Mat Gar Fac Was Fac Gar Fac Gar Fac Was Fac Matter Collected 5270 | 218 281 37 . 40 421 557 736 888 . 110 326 836 137 546 137 . . Remotely 90 | . . . . . 90 . . . . . . . . . . . . Salvage Created 8178 | 123 497 122 . . 1633 742 741 758 . 286 719 895 16 772 874 . . Parts 359 | 4 43 8 . . 75 48 24 31 . 1 30 41 5 15 34 . . Haulers Intercepted 7 | . 2 . . . 3 . 2 . . . . . . . . . . Recyclers Shooed 5 | 1 . 1 . 1 2 . . . . . . . . . . . . Parts Field Recycled . | . . . . . . . . . . . . . . . . . . Retrieved Matter . | . . . . . . . . . . . . . . . . . . Parts Self-Destructed . | . . . . . . . . . . . . . . . . . . Prevented . | . . . . . . . . . . . . . . . . . . Kills | -11 -10 -10 -10 -9 -8 -8 -8 -8 -7 -7 -7 -7 -7 -7 -6 -6 -6 ------- Run | Scr Mat Min Exi Min Mat Gar Mat Gar Fac Was Fac Gar Fac Gar Fac Was Fac Combat Hostiles Destroyed 159 | . 10 5 . . 31 23 9 19 . 1 10 19 . 13 19 . . Melee 1 | . . . . . . . 1 . . . . . . . . . . Guns 64 | . 10 5 . . . 1 . . . . 6 17 . 11 14 . . Cannons 57 | . . . . . 25 13 7 12 . . . . . . . . . AOE 26 | . . . . . 3 9 1 7 . . 4 . . . 2 . . Classes Destroyed 15 | 2 5 . . . 3 1 2 1 . 1 . . . . . . . Worker 7 | . . . . . . . 2 . . . 2 . . . 3 . . Builder 9 | . 1 . . . 2 . 1 . . . 2 . 1 . 2 . . Tunneler 4 | 1 . . . . . . 2 . . . . . . . 1 . . Hauler 7 | . 2 . . . 3 . 2 . . . . . . . . . . Recycler 8 | 1 . 1 . . 1 . 3 . . . 1 . . . 1 . . Operator 2 | . . . . . 1 . . . . . . . . . 1 . . Watcher 14 | . 3 . . . 5 . 3 . . . 2 . . . 1 . . Swarmer 57 | . 3 5 . . 8 14 2 6 . . . 8 . 3 8 . . Grunt 74 | . 7 . . . 14 4 6 10 . 1 9 3 . 9 11 . . Brawler 2 | . . . . . . . . 1 . . 1 . . . . . . Sentry 24 | . . . . . 8 4 . 2 . . 1 8 . 1 . . . Specialist 1 | . . . . . . . 1 . . . . . . . . . . Hunter 2 | . . . . . 1 . 1 . . . . . . . . . . Behemoth 1 | . . . . . . 1 . . . . . . . . . . . Compactor 1 | . . . . . . . . . . 1 . . . . . . . Best Kill Streak 10 | 2 3 3 . . 5 9 5 5 . 1 4 3 1 3 10 . . Combat Bots Only 9 | . 3 3 . . 3 9 2 5 . 1 4 3 . 3 7 . . Max Kills in Single Turn 4 | 1 1 1 . . 2 4 2 2 . 1 4 2 1 2 4 . . Gunslinging 1 | . . . . . . . . . . . . 1 . 1 1 . . Exploded 4 | . . . . . 2 4 1 2 . . 4 . . . 1 . . Melee 1 | . . . . . . . 1 . . . . . . . . . . Uniques/NPCs Destroyed . | . . . . . . . . . . . . . . . . . . Combat | -11 -10 -10 -10 -9 -8 -8 -8 -8 -7 -7 -7 -7 -7 -7 -6 -6 -6 -------- Run | Scr Mat Min Exi Min Mat Gar Mat Gar Fac Was Fac Gar Fac Gar Fac Was Fac Damage Taken 9212 | . 398 115 . . 1418 2397 360 671 . 13 366 1068 52 634 1224 496 . Core 944 | . 80 . . . 205 160 59 60 . . . 65 . 65 173 77 . Absorbed by Shields 432 | . . . . . . . . . . . . 184 . 248 . . . Core Remaining (%) 65 | 100 . . . 68 . . . 12 . . . . . 81 . . . Volleys Fired 629 | 3 60 12 . 1 116 89 43 89 . 19 25 76 7 49 35 5 . Largest 4 | 2 2 2 . 2 2 2 2 2 . 4 4 4 4 4 4 4 . Hottest 305 | 40 40 40 . 120 120 150 96 138 . 220 220 300 300 300 305 305 . Shots Fired 1257 | 6 120 24 . 2 227 130 44 110 . 51 55 206 11 138 115 18 . Gun 673 | 6 120 24 . . . 6 . 6 . 43 44 174 5 122 110 13 . Cannon 449 | . . . . 2 222 109 26 82 . . . . . . 3 5 . Launcher 25 | . . . . . 5 6 2 9 . . 1 . . . 2 . . Special 110 | . . . . . . 9 16 13 . 8 10 32 6 16 . . . Kinetic 238 | 6 120 24 . . 3 6 26 53 . . . . . . . . . Thermal 884 | . . . . 2 219 109 . 35 . 43 44 174 5 122 113 18 . Explosive 25 | . . . . . 5 6 2 9 . . 1 . . . 2 . . Electromagnetic . | . . . . . . . . . . . . . . . . . . Robot Hit Streak 31 | 4 19 9 . . 17 19 26 23 . 29 10 21 6 31 12 6 . Robot Miss Streak 6 | . 3 2 . 2 6 4 3 4 . 2 1 2 2 3 5 1 . Penetration Max 1 | . . . . . . . . 1 . . . . . . . . . Secondary Targets 14 | . . 1 . . . . . . . . . 6 . 3 4 . . Max Gunslinging Chain 1 | . . 1 . . . . . . . . . 1 . 1 1 . . Shots Hit Robots 846 | 4 86 18 . . 149 95 44 63 . 46 37 119 8 90 72 15 . Core Hits 359 | 3 35 12 . . 72 36 20 38 . 4 29 35 1 28 43 3 . Critical Kills . | . . . . . . . . . . . . . . . . . . Critical Parts Destroyed 4 | . . . . . . . 4 . . . . . . . . . . Critical Strikes 29 | . . . . . . . 6 1 . 2 . 9 . 7 4 . . Burn 22 | . . . . . . . . . . 2 . 9 . 7 4 . . Blast 3 | . . . . . . . 2 1 . . . . . . . . . Smash 4 | . . . . . . . 4 . . . . . . . . . . Melee Attacks 48 | . . . . . 1 3 12 31 . . . . . 1 . . . Impact 48 | . . . . . 1 3 12 31 . . . . . 1 . . . Slashing . | . . . . . . . . . . . . . . . . . . Piercing . | . . . . . . . . . . . . . . . . . . Sneak Attacks 6 | . . . . . . . 6 . . . . . . . . . . Combat Hostiles . | . . . . . . . . . . . . . . . . . . Follow-up Attacks . | . . . . . . . . . . . . . . . . . . Damage Inflicted 20829 | 50 875 193 . . 3284 3043 1705 2824 . 798 1376 1731 44 1867 2691 348 . Guns 8122 | 50 858 159 . . . 106 . 113 . 798 597 1731 44 1838 1608 220 . Cannons 6943 | . . . . . 2797 2102 529 1360 . . . . . . 27 128 . Explosions 4880 | . . . . . 470 835 389 1351 . . 779 . . . 1056 . . Melee 816 | . . . . . . . 787 . . . . . . 29 . . . Ramming 68 | . 17 34 . . 17 . . . . . . . . . . . . Kinetic 2531 | 50 858 159 . . 74 106 529 755 . . . . . . . . . Thermal 12534 | . . . . . 2723 2102 . 718 . 798 597 1731 44 1838 1635 348 . Explosive 4773 | . . . . . 470 835 389 1351 . . 672 . . . 1056 . . Electromagnetic 107 | . . . . . . . . . . . 107 . . . . . . Impact 816 | . . . . . . . 787 . . . . . . 29 . . . Slashing . | . . . . . . . . . . . . . . . . . . Piercing . | . . . . . . . . . . . . . . . . . . Highest Corruption 14 | . . . . . . . . . . 11 11 6 6 6 . 14 . Average Corruption 6 | . . . . . . . . . . 8 10 6 6 6 . 5 . Corruption Purged 5 | . . . . . . . . . . . 5 . . . . . . Corruption Blocked . | . . . . . . . . . . . . . . . . . . Effects 216 | . . . . . . . . . . 6 31 88 26 62 . 3 . Message Errors 49 | . . . . . . . . . . 2 8 20 5 12 . 2 . Matter Fused 49 | . . . . . . . . . . . 8 22 7 11 . 1 . Heat Flow Errors 28 | . . . . . . . . . . . 1 15 2 10 . . . Energy Discharges 30 | . . . . . . . . . . 2 5 10 5 8 . . . Parts Rejected 2 | . . . . . . . . . . . 1 . . 1 . . . Data Loss (minor) 21 | . . . . . . . . . . . 3 9 2 7 . . . Data Loss (major) 15 | . . . . . . . . . . 1 2 5 2 5 . . . Misfires 10 | . . . . . . . . . . . 1 4 2 3 . . . Alerts 6 | . . . . . . . . . . . 1 2 . 3 . . . Weapon Failures 6 | . . . . . . . . . . 1 1 1 1 2 . . . Overload Shots . | . . . . . . . . . . . . . . . . . . Overflow Damage 826 | . . . . . 57 74 488 74 . . 29 . . . 104 . . Projectiles 111 | . . . . . 57 17 25 12 . . . . . . . . . Explosions 268 | . . . . . . 57 16 62 . . 29 . . . 104 . . Melee 447 | . . . . . . . 447 . . . . . . . . . . Knockbacks 13 | . 1 1 . . 2 . 6 2 . . . . . 1 . . . Impact 6 | . 1 1 . . . . 3 . . . . . . 1 . . . Kinetic 7 | . . . . . 2 . 3 2 . . . . . . . . . Secondary . | . . . . . . . . . . . . . . . . . . Self-Inflicted Damage 236 | . . . . . . 65 . . . . 83 . . . 88 . . Shots 4 | . . . . . . 2 . . . . 1 . . . 1 . . Rammed 20 | . 4 11 . . 5 . . . . . . . . . . . . Targets Rammed 21 | . 4 12 . . 5 . . . . . . . . . . . . Kicked . | . . . . . . . . . . . . . . . . . . Crushed 1 | . . 1 . . . . . . . . . . . . . . . Highest Temperature 606 | . 18 . . 18 282 189 81 344 . 4 156 606 227 372 261 72 . Average Temperature 78 | . 8 . . 12 53 60 38 75 . 4 55 115 74 102 96 42 . Received Heat Transfer 2646 | . 183 . . . 603 666 90 297 . 9 105 228 12 144 309 . . Effects 18 | . . . . . . . . 1 . . . 13 . 4 . . . Shutdowns 2 | . . . . . . . . . . . . 2 . . . . . Energy Bleed 4 | . . . . . . . . 1 . . . 2 . 1 . . . Interference 6 | . . . . . . . . . . . . 3 . 3 . . . Short Circuit 1 | . . . . . . . . . . . . 1 . . . . . Damage (minor) 2 | . . . . . . . . . . . . 2 . . . . . Damage (major) 3 | . . . . . . . . . . . . 3 . . . . . Siege Activations . | . . . . . . . . . . . . . . . . . . Robots Corrupted . | . . . . . . . . . . . . . . . . . . Combat Hostiles . | . . . . . . . . . . . . . . . . . . Parts Fried 6 | . . . . . . . 6 . . . . . . . . . . Impact Corruptions 11 | . . . . . . . 11 . . . . . . . . . . Robots Melted 12 | . . . . . 3 . . . . 1 . 2 . 3 3 . . Combat Hostiles 11 | . . . . . 3 . . . . 1 . 2 . 2 3 . . Parts Melted 63 | . . . . . 14 3 . . . 7 2 9 . 14 14 . . Heat Transferred 26190 | . . . . . 5550 2960 . 1172 . 1702 1110 3996 100 4750 4100 750 . Parts Sabotaged . | . . . . . . . . . . . . . . . . . . Parts Stolen . | . . . . . . . . . . . . . . . . . . Parts Stripped . | . . . . . . . . . . . . . . . . . . Power Chain Reactions . | . . . . . . . . . . . . . . . . . . Missiles Intercepted . | . . . . . . . . . . . . . . . . . . Alert | -11 -10 -10 -10 -9 -8 -8 -8 -8 -7 -7 -7 -7 -7 -7 -6 -6 -6 ------- Run | Scr Mat Min Exi Min Mat Gar Mat Gar Fac Was Fac Gar Fac Gar Fac Was Fac Peak Influence 1078 | 10 179 84 . . 482 1078 540 867 455 159 200 898 726 519 717 228 . Initial 525 | . 6 19 . . . 312 525 13 455 159 111 132 471 74 272 228 103 Average 428 | 1 42 30 . . 208 935 71 648 455 159 129 673 284 360 502 188 . Maximum Alert Level 3 | . . . . . 2 3 2 3 2 . 1 3 3 2 3 1 . Low Security (%) 38 | 100 100 100 . 100 55 . 98 6 . 100 93 2 48 13 . 57 . Level 1 12 | . . . . . 20 1 . 8 . . 6 20 17 43 23 42 . Level 2 20 | . . . . . 24 5 . 31 100 . . 27 32 43 75 . . Level 3 28 | . . . . . . 93 . 53 . . . 49 2 . 1 . . Level 4 . | . . . . . . . . . . . . . . . . . . Level 5 . | . . . . . . . . . . . . . . . . . . High Security . | . . . . . . . . . . . . . . . . . . Max Security . | . . . . . . . . . . . . . . . . . . Squads Dispatched 27 | . 3 . . 1 5 . 3 . 2 . 5 . 5 . 3 . . Investigation 13 | . 2 . . 1 3 . . . 1 . . . 4 . 2 . . Extermination 1 | . . . . . . . . . . . 1 . . . . . . Reinforcement 9 | . 1 . . . 1 . 3 . 1 . 1 . 1 . 1 . . Assault . | . . . . . . . . . . . . . . . . . . Garrison 4 | . . . . . 1 . . . . . 3 . . . . . . Intercept . | . . . . . . . . . . . . . . . . . . Searches Triggered . | . . . . . . . . . . . . . . . . . . Construction Impeded 1 | . . . . . . . . . . . 1 . . . . . . Haulers Reinforced . | . . . . . . . . . . . . . . . . . . Active Scanning Responses . | . . . . . . . . . . . . . . . . . . Cargo Convoy Interrupts . | . . . . . . . . . . . . . . . . . . Stealth | -11 -10 -10 -10 -9 -8 -8 -8 -8 -7 -7 -7 -7 -7 -7 -6 -6 -6 --------- Run | Scr Mat Min Exi Min Mat Gar Mat Gar Fac Was Fac Gar Fac Gar Fac Was Fac Distress Signals 8 | . 1 . . . 3 . 2 . . . . . 2 . . . . Communications Jammed . | . . . . . . . . . . . . . . . . . . Distress Signals . | . . . . . . . . . . . . . . . . . . Times Spotted 287 | . 21 6 . . 42 28 27 25 3 5 17 45 9 30 23 6 . Peak Tracking Total 12 | . 3 3 . . 4 12 3 5 2 3 4 4 3 7 4 6 . Tactical Retreats 10 | . 1 . . . 1 1 1 1 . . . 2 . 2 1 . . Traps | -11 -10 -10 -10 -9 -8 -8 -8 -8 -7 -7 -7 -7 -7 -7 -6 -6 -6 ------- Run | Scr Mat Min Exi Min Mat Gar Mat Gar Fac Was Fac Gar Fac Gar Fac Was Fac Traps Triggered 40 | . 2 . . . 1 10 1 9 1 . . 6 . 8 2 . . Indirectly . | . . . . . . . . . . . . . . . . . . Trap Hack Attempts . | . . . . . . . . . . . . . . . . . . Triggered . | . . . . . . . . . . . . . . . . . . Disarmed . | . . . . . . . . . . . . . . . . . . Reprogrammed . | . . . . . . . . . . . . . . . . . . Reused . | . . . . . . . . . . . . . . . . . . Traps Reconfigurated 15 | . . . . . . 7 8 . . . . . . . . . . Traps Extracted . | . . . . . . . . . . . . . . . . . . Installed . | . . . . . . . . . . . . . . . . . . Triggered . | . . . . . . . . . . . . . . . . . . Exploded 1 | . . . 1 . . . . . . . . . . . . . . Machines | -11 -10 -10 -10 -9 -8 -8 -8 -8 -7 -7 -7 -7 -7 -7 -6 -6 -6 ---------- Run | Scr Mat Min Exi Min Mat Gar Mat Gar Fac Was Fac Gar Fac Gar Fac Was Fac Machines Disabled 41 | . . . . . 4 4 1 8 . . 4 5 2 4 9 . . Max in Single Turn 4 | . . . . . 1 1 1 1 . . 3 1 . 1 4 . . Garrison Access 1 | . . . . . . . . . . . . . . . 1 . . Garrison Relay 17 | . . . . . . 4 . 4 . . . 5 . 4 . . . Machines Sabotaged . | . . . . . . . . . . . . . . . . . . Garrisons Compromised . | . . . . . . . . . . . . . . . . . . Overloaded Fab Kills . | . . . . . . . . . . . . . . . . . . Hacking | -11 -10 -10 -10 -9 -8 -8 -8 -8 -7 -7 -7 -7 -7 -7 -6 -6 -6 --------- Run | Scr Mat Min Exi Min Mat Gar Mat Gar Fac Was Fac Gar Fac Gar Fac Was Fac Machines Accessed 46 | . 8 . 2 1 11 . 8 . 3 . 3 . 5 . 5 . . Terminals 26 | . 7 . . . 8 . 4 . 3 . 2 . 1 . 1 . . Fabricators 5 | . . . . . . . . . . . . . 3 . 2 . . Repair Stations . | . . . . . . . . . . . . . . . . . . Recycling Units 6 | . 1 . . . 2 . 2 . . . . . . . 1 . . Scanalyzers 1 | . . . . . . . 1 . . . . . . . . . . Garrison Access 5 | . . . . . 1 . 1 . . . 1 . 1 . 1 . . Total Hacks 113 | . 15 . 2 1 42 . 19 . 5 . 4 . 13 . 12 . . Successful 56 | . 8 . 2 1 20 . 12 . . . 2 . 6 . 5 . . Failed 56 | . 6 . . . 22 . 7 . 5 . 2 . 7 . 7 . . Catastrophic 8 | . . . . . 3 . . . 1 . 2 . 1 . 1 . . Database Lockouts 1 | . 1 . . . . . . . . . . . . . . . . Manual 77 | . 11 . 1 . 30 . 16 . 4 . 3 . 5 . 7 . . Terminals 71 | . 14 . . . 36 . 8 . 5 . 3 . 2 . 3 . . Fabricators 15 | . . . . . . . . . . . . . 10 . 5 . . Repair Stations . | . . . . . . . . . . . . . . . . . . Recycling Units 15 | . 1 . . . 4 . 8 . . . . . . . 2 . . Scanalyzers 2 | . . . . . . . 2 . . . . . . . . . . Garrison Access 7 | . . . . . 2 . 1 . . . 1 . 1 . 2 . . Terminal Hacks 22 | . 5 . 2 1 12 . 1 . . . . . . . 1 . . Record 1 | . . . 1 . . . . . . . . . . . . . . Robot Analysis 6 | . 2 . . . 4 . . . . . . . . . . . . Prototype ID Bank 1 | . 1 . . . . . . . . . . . . . . . . Open Door 1 | . . . . 1 . . . . . . . . . . . . . Branch Access Points 1 | . . . . . . . . . . . . . . . 1 . . Alert Level 2 | . . . . . 2 . . . . . . . . . . . . Unreport Threat 3 | . . . . . 3 . . . . . . . . . . . . Locate Traps 2 | . . . . . 2 . . . . . . . . . . . . Hauler Manifests 4 | . 2 . . . 1 . 1 . . . . . . . . . . EX-Prototype ID Bank 1 | . . . 1 . . . . . . . . . . . . . . Fabricator Hacks 6 | . . . . . . . . . . . . . 4 . 2 . . Network Status 2 | . . . . . . . . . . . . . 1 . 1 . . Load Schematic 4 | . . . . . . . . . . . . . 3 . 1 . . Repair Station Hacks . | . . . . . . . . . . . . . . . . . . Recycling Unit Hacks 2 | . . . . . . . 2 . . . . . . . . . . Retrieve Components 2 | . . . . . . . 2 . . . . . . . . . . Scanalyzer 2 | . . . . . . . 2 . . . . . . . . . . Insert Component 1 | . . . . . . . 1 . . . . . . . . . . Analyze 1 | . . . . . . . 1 . . . . . . . . . . Garrison Access Hacks 5 | . . . . . 1 . 1 . . . 1 . 1 . 1 . . Unlock Access 4 | . . . . . 1 . 1 . . . 1 . 1 . . . . Seal Access 1 | . . . . . . . . . . . . . . . 1 . . Unauthorized Hacks 19 | . 3 . . . 7 . 6 . . . 1 . 1 . 1 . . Terminals 8 | . 2 . . . 3 . 2 . . . 1 . . . . . . Botnet 7 | . 2 . . . 2 . 2 . . . 1 . . . . . . Operators 1 | . . . . . 1 . . . . . . . . . . . . Fabricators 2 | . . . . . . . . . . . . . 1 . 1 . . Recompile 2 | . . . . . . . . . . . . . 1 . 1 . . Repair Stations . | . . . . . . . . . . . . . . . . . . Recycling Units 9 | . 1 . . . 4 . 4 . . . . . . . . . . Reject 3 | . . . . . 1 . 2 . . . . . . . . . . Mask 3 | . . . . . 1 . 2 . . . . . . . . . . Tunnel 3 | . 1 . . . 2 . . . . . . . . . . . . Scanalyzers . | . . . . . . . . . . . . . . . . . . Garrison Access . | . . . . . . . . . . . . . . . . . . Data Cores Recovered 1 | . . . . . . . . . . . . . . . 1 . . Used 1 | . . . . . . . . . . . . . . . 1 . . Hacking Detections 34 | . 6 . . . 9 . 5 . 3 . 3 . 4 . 4 . . Full Trace Events 5 | . . . . . 1 . . . 1 . . . 3 . . . . Feedback Events . | . . . . . . . . . . . . . . . . . . Feedback Blocked . | . . . . . . . . . . . . . . . . . . Robot Schematics Acquired . | . . . . . . . . . . . . . . . . . . Robots Built . | . . . . . . . . . . . . . . . . . . Authchips . | . . . . . . . . . . . . . . . . . . Time . | . . . . . . . . . . . . . . . . . . Total Robot Build Rating . | . . . . . . . . . . . . . . . . . . Part Schematics Acquired 1 | . . . . . . . 1 . . . . . . . . . . Parts Built . | . . . . . . . . . . . . . . . . . . Authchips . | . . . . . . . . . . . . . . . . . . Time . | . . . . . . . . . . . . . . . . . . Total Part Build Rating . | . . . . . . . . . . . . . . . . . . Parts Repaired . | . . . . . . . . . . . . . . . . . . Time . | . . . . . . . . . . . . . . . . . . Parts Recycled . | . . . . . . . . . . . . . . . . . . Recycled Matter . | . . . . . . . . . . . . . . . . . . Retrieved Matter . | . . . . . . . . . . . . . . . . . . Retrieved Components 9 | . . . . . . . 9 . . . . . . . . . . Parts Scanalyzed 1 | . . . . . . . 1 . . . . . . . . . . Part Schematics Acquired 1 | . . . . . . . 1 . . . . . . . . . . Parts Damaged . | . . . . . . . . . . . . . . . . . . Bothacking | -11 -10 -10 -10 -9 -8 -8 -8 -8 -7 -7 -7 -7 -7 -7 -6 -6 -6 ------------ Run | Scr Mat Min Exi Min Mat Gar Mat Gar Fac Was Fac Gar Fac Gar Fac Was Fac Used RIF Installer 4 | . . . . . . 1 . 1 . . . 1 . 1 . . . Command Fork 1 | . . . . . . . . . . . . 1 . . . . . Structural Interface 1 | . . . . . . . . 1 . . . . . . . . . Autooverride 1 | . . . . . . . . . . . . . . 1 . . . Robots Hacked 57 | . . . . . . 5 7 5 . 5 6 16 2 11 . . . Non-combat 4 | . . . . . . . 1 . . . 2 . 1 . . . . Combat 53 | . . . . . . 5 6 5 . 5 4 16 1 11 . . . Autooverrided 4 | . . . . . . . . . . . . . . 4 . . . Robot Hacks Applied 63 | . . . . . . 5 11 6 . 6 7 16 5 7 . . . randomize_corridors 1 | . . . . . . . . . . . 1 . . . . . . map_earth 1 | . . . . . . . . . . . 1 . . . . . . find_recycling 1 | . . . . . . . . . . . 1 . . . . . . purge_threat 6 | . . . . . . . 3 . . . . . 3 . . . . locate_traps 1 | . . . . . . . 1 . . . . . . . . . . ignore_targets 6 | . . . . . . . . . . 6 . . . . . . . link_complan 1 | . . . . . . . 1 . . . . . . . . . . broadcast_data 1 | . . . . . . . . 1 . . . . . . . . . disrupt_area 1 | . . . . . . . . 1 . . . . . . . . . spike_heat 3 | . . . . . . . 2 1 . . . . . . . . . disable_weapons 1 | . . . . . . . . . . . . 1 . . . . . reboot_system 2 | . . . . . . . . . . . 1 1 . . . . . overwrite_iff 2 | . . . . . . . 1 . . . . . . 1 . . . formatsys_low 1 | . . . . . . . . . . . . . 1 . . . . formatsys_high 35 | . . . . . . 5 3 3 . . 3 14 1 6 . . . Relay Couplers Released 64 | . . . . . . 15 . 15 . . . 18 . 16 . . . Machine Destruction 64 | . . . . . . 15 . 15 . . . 18 . 16 . . . Attached 30 | . . . . . . 4 4 2 . 1 3 9 3 4 . . . Fabnet Peak Effective % . | . . . . . . . . . . . . . . . . . . Robots Rewired . | . . . . . . . . . . . . . . . . . . Allies Hacked . | . . . . . . . . . . . . . . . . . . Hacks Repelled . | . . . . . . . . . . . . . . . . . . Allies | -11 -10 -10 -10 -9 -8 -8 -8 -8 -7 -7 -7 -7 -7 -7 -6 -6 -6 -------- Run | Scr Mat Min Exi Min Mat Gar Mat Gar Fac Was Fac Gar Fac Gar Fac Was Fac Total Allies 47 | . . 3 . . . 5 4 3 . . 3 14 2 13 . . . Largest Group 5 | . . 3 2 . . 5 5 3 1 1 2 5 5 4 1 . . Highest-Rated Group 181 | . . 76 45 . . 65 65 48 16 16 52 181 181 120 80 . . Highest-Rated Ally 85 | . . 31 31 . . 15 29 16 16 16 32 85 85 85 80 . . Total Orders 36 | . . . . . . 4 . 2 . . . 11 2 15 2 . . STAY 17 | . . . . . . 3 . 1 . . . 6 1 5 1 . . ROAM 2 | . . . . . . . . . . . . . . 2 . . . FOLLOW 17 | . . . . . . 1 . 1 . . . 5 1 8 1 . . Ally Attacks 238 | . . 1 . . . 1 48 26 3 17 16 49 36 34 7 . . Total Damage 4856 | . . 20 . . . . 652 275 34 260 513 1159 1025 571 347 . . Kills 49 | . . 1 . . . . 8 5 . 1 2 10 13 7 2 . . Allies Corrupted . | . . . . . . . . . . . . . . . . . . Allies Melted . | . . . . . . . . . . . . . . . . . . Intel | -11 -10 -10 -10 -9 -8 -8 -8 -8 -7 -7 -7 -7 -7 -7 -6 -6 -6 ------- Run | Scr Mat Min Exi Min Mat Gar Mat Gar Fac Was Fac Gar Fac Gar Fac Was Fac Robot Analysis Total 6 | . 2 . . . 4 . . . . . . . . . . . . Derelict Logs Recovered 2 | . . 1 . 1 . . . . . . . . . . . . . Drone Launches . | . . . . . . . . . . . . . . . . . . Drone Recoveries . | . . . . . . . . . . . . . . . . . . Exploration | -11 -10 -10 -10 -9 -8 -8 -8 -8 -7 -7 -7 -7 -7 -7 -6 -6 -6 ------------- Run | Scr Mat Min Exi Min Mat Gar Mat Gar Fac Was Fac Gar Fac Gar Fac Was Fac Turns Passed 32112 | 82 1484 1003 458 749 6861 5193 2904 4691 108 196 983 3233 771 2395 879 122 . Spaces Moved 12007 | 39 731 591 280 295 1909 1564 1085 1614 49 61 381 1526 308 1052 424 98 . Core 69 | 4 . . . . . . . . . . . . . . . 65 . Treads 4283 | 35 731 591 280 295 1290 817 1 243 . . . . . . . . . Legs . | . . . . . . . . . . . . . . . . . . Wheels 7655 | . . . . . 619 747 1084 1371 49 61 381 1526 308 1052 424 33 . Hover . | . . . . . . . . . . . . . . . . . . Flight . | . . . . . . . . . . . . . . . . . . Fastest Speed 50 | 50 160 160 160 160 220 160 205 165 220 220 220 145 220 160 160 50 . Average Speed 225 | 148 160 160 160 246 287 283 223 252 220 220 220 178 233 189 160 84 . Slowest Speed 1120 | 160 160 160 160 320 320 400 1120 400 220 220 220 235 235 265 160 250 . Overloaded Moves . | . . . . . . . . . . . . . . . . . . Propulsion Burnouts . | . . . . . . . . . . . . . . . . . . Robots Hopped . | . . . . . . . . . . . . . . . . . . Cave-ins Triggered . | . . . . . . . . . . . . . . . . . . Exploration Rate (%) 59 | 3 98 99 61 57 88 87 59 97 3 64 12 99 7 99 13 73 . Regions Visited 17 Branch Regions 3 Pre-discovered Areas 4 | . 1 . 1 . 2 . . . . . . . . . . . . Known Exits Taken 4 | . . . . . 1 . 1 . . . 1 . 1 . . . . Unknown Exits Taken 5 | 1 1 1 1 1 . . . . . . . . . . . . . Scrap Searched 4 | . . 1 . 3 . . . . . . . . . . . . . Spaces Dug 5 | . . . . . 1 . 1 3 . . . . . . . . . Terrain Destroyed 192 | . . . . . 34 16 22 57 . . 31 . . . 32 . . Melee 4 | . . . . . 1 . 1 2 . . . . . . . . . Projectile 14 | . . . . . . . 12 2 . . . . . . . . . AOE 174 | . . . . . 33 16 9 53 . . 31 . . . 32 . . Terrain Rammed . | . . . . . . . . . . . . . . . . . . Walls Destroyed . | . . . . . . . . . . . . . . . . . . Machines Disabled . | . . . . . . . . . . . . . . . . . . Actions | -11 -10 -10 -10 -9 -8 -8 -8 -8 -7 -7 -7 -7 -7 -7 -6 -6 -6 --------- Run | Scr Mat Min Exi Min Mat Gar Mat Gar Fac Was Fac Gar Fac Gar Fac Was Fac Total 16027 | 54 941 622 291 315 3051 2210 1507 2095 51 89 487 1924 351 1370 545 124 . Wait 2239 | 2 127 6 6 3 900 343 294 144 . 2 50 160 17 115 62 8 . Move 11994 | 38 730 590 279 294 1909 1563 1084 1613 49 60 381 1525 307 1051 424 97 . Hop . | . . . . . . . . . . . . . . . . . . Pick Up 281 | 4 13 . 4 11 44 58 10 54 . 1 4 45 3 21 5 4 . Fast Attach 77 | 7 . . . . 8 8 10 5 . . 4 11 3 12 3 6 . Attach 94 | . 1 2 . . 17 19 8 8 2 . 3 14 1 11 5 3 . Detach 60 | . . . . . 5 14 5 9 . . 3 10 1 11 2 . . Swap 158 | . 2 . . 4 13 21 25 24 . 7 11 27 8 10 6 . . Drop 249 | . 4 . 2 2 33 54 16 58 . . 6 40 4 26 3 1 . Fire 629 | 3 60 12 . 1 116 89 43 89 . 19 25 76 7 49 35 5 . Melee 48 | . . . . . 1 3 12 31 . . . . . 1 . . . Ram . | . . . . . . . . . . . . . . . . . . Kick . | . . . . . . . . . . . . . . . . . . Crush 21 | . 4 12 . . 5 . . . . . . . . . . . . Escape Stasis 177 | . . . . . . 38 . 60 . . . 16 . 63 . . . Rewire . | . . . . . . . . . . . . . . . . . . Trap . | . . . . . . . . . . . . . . . . . . Miscellaneous . | . . . . . . . . . . . . . . . . . . Route ------- -11/Scrapyard -10/Materials (discovered 5 exits: [*Mat x3] / [*Min x2]) -10/Mines (discovered 3 exits: [*Mat x2] / *Exi) -10/Exiles -9/Mines -8/Materials (discovered 5 exits: *Fac x2 / *Sto x2 / Gar) -8/Garrison (discovered 3 exits: *Mat x3) -8/Materials (discovered 3 exits: *Fac / *Sto / Gar) -8/Garrison (discovered 3 exits: *Fac x3) -7/Factory -7/Waste -7/Factory -7/Garrison (discovered 3 exits: *Fac x3) -7/Factory -7/Garrison (discovered 3 exits: *Fac x3) -6/Factory (discovered 4 exits: Low x2 / Ext x2) -6/Waste -6/Factory History --------- Turn | Location | Event 10 | -11/Scrapyard | Discovered new exit (range 15) 83 | -11/Scrapyard | Entered Materials 286 | -10/Materials | Discovered new exit (range 7) 308 | -10/Materials | Build established: Mutant 650 | -10/Materials | Discovered new exit (range 3) 881 | -10/Materials | Discovered new exit (range 16) 959 | -10/Materials | Discovered new exit (range 15) 1479 | -10/Materials | Discovered new exit (range 13) 1492 | -10/Materials | Central database locked down 1567 | -10/Materials | Entered Mines 1588 | -10/Mines | Learned 2 Materials zone layouts 1617 | -10/Mines | Deemed a non-threat by the Exiles lab entrance 1617 | -10/Mines | Discovered new exit (range 5) 2175 | -10/Mines | Discovered new exit (range 14) 2211 | -10/Mines | Received a Mining Laser from a helpful Derelict 2478 | -10/Mines | Discovered new exit (range 14) 2570 | -10/Mines | Entered Exiles 2570 | -10/Exiles | Accompanied by 2 allies 2600 | -10/Exiles | Led the pair of lost Derelicts to a safe place 2615 | -10/Exiles | Met 8R-AWN 2642 | -10/Exiles | Met EX-HEX 2704 | -10/Exiles | Met EX-DEC 2712 | -10/Exiles | Learned location of Zion (-6) 2746 | -10/Exiles | Met EX-BIN 2768 | -10/Exiles | Aligned with FarCom system 2770 | -10/Exiles | Given EX-Vault access code 2815 | -10/Exiles | Opened EX-Vault 2823 | -10/Exiles | Found Cloak of Protection 2827 | -10/Exiles | Found Trap Reconfigurator 2833 | -10/Exiles | Found Gui. Plasma Cannon 2871 | -10/Exiles | Warned to stay clear of 0b10 Research branches 2883 | -10/Exiles | Exiles lab attacked by MAIN.C 3015 | -10/Exiles | Discovered new exit (range 10) 3028 | -10/Exiles | Stole three prototypes: Cloak of Protection, Trap Reconfigurator, Gui. Plasma Cannon 3028 | -10/Exiles | Entered Mines 3054 | -9/Mines | Learned Materials security intel 3091 | -9/Mines | Found a hidden stash of uninstalled traps 3531 | -9/Mines | Met a Derelict shopkeep closing up shop 3629 | -9/Mines | Discovered new exit (range 10) 3687 | -9/Mines | Assembled infested the area 3687 | -9/Mines | Received a Rocket Launcher from a helpful Derelict 3777 | -9/Mines | Entered Materials 3777 | -8/Materials | Evolved 4 slots: Utility x4 3777 | -8/Materials | Discovered new exit (range 15) 3937 | -8/Materials | Discovered new exit (range 11) 4190 | -8/Materials | Build established: Scavenger-Mutant 5043 | -8/Materials | Identified exit to Storage 5974 | -8/Materials | Discovered new exit (range 16) 6911 | -8/Materials | Discovered new exit (range 16) 7910 | -8/Materials | Garrison activated, responded to threat 9508 | -8/Materials | Build established: Hauler-Mutant 10638 | -8/Materials | Identified exit to Garrison 10638 | -8/Materials | Entered Garrison 10797 | -8/Garrison | Spotted B-75 Beast 10836 | -8/Garrison | Destroyed B-75 Beast 10865 | -8/Garrison | Lost 3 parts (1p2u) 10904 | -8/Garrison | Triggered checkpoint 10954 | -8/Garrison | Core integrity fell below 50% 10977 | -8/Garrison | Destroyed 9 combat bots 11021 | -8/Garrison | Lost 4 parts (1p3u) 11023 | -8/Garrison | Build established: Mutant 11050 | -8/Garrison | Discovered new exit (range 10) 11110 | -8/Garrison | Triggered checkpoint 11183 | -8/Garrison | Discovered new exit (range 9) 11242 | -8/Garrison | Triggered checkpoint 11289 | -8/Garrison | Discovered new exit (range 12) 11316 | -8/Garrison | Installed Relay Interface Framework 11910 | -8/Garrison | Build established: Scavenger-Mutant 11962 | -8/Garrison | Triggered checkpoint 11999 | -8/Garrison | Garrison Relay disabled 12420 | -8/Garrison | Build established: Bothacker-Mutant 12500 | -8/Garrison | Triggered checkpoint 12554 | -8/Garrison | Garrison Relay disabled 12920 | -8/Garrison | Triggered checkpoint 13212 | -8/Garrison | Garrison Relay disabled 13518 | -8/Garrison | Triggered checkpoint 13597 | -8/Garrison | Garrison Relay disabled 14166 | -8/Garrison | Build established: Scavenger-Mutant 15135 | -8/Garrison | Build established: Hauler-Mutant 15831 | -8/Garrison | Entered Materials 15831 | -8/Materials | Accompanied by 5 allies 16045 | -8/Materials | Discovered exit to Storage (range 12) 16308 | -8/Materials | Discovered new exit (range 15) 17995 | -8/Materials | Identified exit to Garrison 18735 | -8/Materials | Entered Garrison 19017 | -8/Garrison | Core integrity fell below 20% 19076 | -8/Garrison | Build established: Mutant 19174 | -8/Garrison | Triggered checkpoint 19422 | -8/Garrison | Triggered checkpoint 19779 | -8/Garrison | Discovered new exit (range 8) 19806 | -8/Garrison | Build established: Scavenger-Mutant 19859 | -8/Garrison | Triggered checkpoint 19920 | -8/Garrison | Garrison Relay disabled 20147 | -8/Garrison | Triggered checkpoint 20301 | -8/Garrison | Build established: Bothacker-Mutant 20793 | -8/Garrison | Discovered new exit (range 9) 20833 | -8/Garrison | Expanded RIF knowledge: Structural Interface 20901 | -8/Garrison | Garrison Relay disabled 21765 | -8/Garrison | Triggered checkpoint 21789 | -8/Garrison | Triggered checkpoint 21970 | -8/Garrison | Triggered checkpoint 22028 | -8/Garrison | Garrison Relay disabled 22097 | -8/Garrison | Discovered new exit (range 15) 22767 | -8/Garrison | Build established: Mutant 23426 | -8/Garrison | Entered Factory 23426 | -7/Factory | Accompanied by 1 ally 23426 | -7/Factory | Evolved 2 slots: Weapon x2 23428 | -7/Factory | FarCom data flow suspended 23534 | -7/Factory | Sucked down chute 23534 | -7/Factory | Entered Waste 23549 | -7/Waste | EMP discharged 23550 | -7/Waste | 1 allies followed down the chute 23552 | -7/Waste | Spotted C-40 Crusher 23557 | -7/Waste | Spotted C-40 Crusher 23578 | -7/Waste | Allies destroyed C-40 Crusher 23588 | -7/Waste | Spotted C-40 Crusher 23607 | -7/Waste | Destroyed C-40 Crusher 23609 | -7/Waste | Spotted C-40 Crusher 23630 | -7/Waste | Spotted C-40 Crusher 23649 | -7/Waste | EMP discharged 23649 | -7/Waste | System corruption reached 10% 23660 | -7/Waste | Spotted C-40 Crusher 23708 | -7/Waste | Discovered new exit (range 10) 23730 | -7/Waste | Entered Factory 24713 | -7/Factory | Identified exit to Garrison 24713 | -7/Factory | Entered Garrison 24793 | -7/Garrison | Build established: Bothacker-Gunner 24839 | -7/Garrison | Garrison Relay disabled 24868 | -7/Garrison | Triggered checkpoint 24924 | -7/Garrison | Spotted B-75 Beast 24924 | -7/Garrison | Spotted B-75 Beast 24984 | -7/Garrison | Triggered checkpoint 24999 | -7/Garrison | Garrison Relay disabled 25144 | -7/Garrison | Triggered checkpoint 25466 | -7/Garrison | Triggered checkpoint 25487 | -7/Garrison | Garrison Relay disabled 25657 | -7/Garrison | Discovered new exit (range 10) 25747 | -7/Garrison | Triggered checkpoint 25969 | -7/Garrison | Discovered new exit (range 8) 26066 | -7/Garrison | Triggered checkpoint 26092 | -7/Garrison | Garrison Relay disabled 26204 | -7/Garrison | Triggered checkpoint 26279 | -7/Garrison | Discovered new exit (range 4) 26295 | -7/Garrison | Expanded RIF knowledge: Command Fork 26340 | -7/Garrison | Triggered checkpoint 26366 | -7/Garrison | Garrison Relay disabled 26434 | -7/Garrison | Triggered checkpoint 26542 | -7/Garrison | Assimilated Beast 4a with formatsys_high 26573 | -7/Garrison | Allies destroyed B-75 Beast 26760 | -7/Garrison | Found Hvy. Reflective Plating 26833 | -7/Garrison | Build established: Bothacker-Mutant 27588 | -7/Garrison | Build established: Bothacker-Gunner 27946 | -7/Garrison | Entered Factory 27946 | -7/Factory | Accompanied by 5 allies 28625 | -7/Factory | Build established: Hauler-Tank 28703 | -7/Factory | Identified exit to Garrison 28717 | -7/Factory | Entered Garrison 28717 | -7/Garrison | Accompanied by 1 ally 28729 | -7/Garrison | Expanded RIF knowledge: Autooverride 29105 | -7/Garrison | Garrison Relay disabled 29214 | -7/Garrison | Triggered checkpoint 29272 | -7/Garrison | Triggered checkpoint 29306 | -7/Garrison | Triggered checkpoint 29486 | -7/Garrison | Triggered checkpoint 29544 | -7/Garrison | Garrison Relay disabled 29584 | -7/Garrison | Discovered new exit (range 8) 29656 | -7/Garrison | Triggered checkpoint 29738 | -7/Garrison | Triggered checkpoint 29774 | -7/Garrison | Garrison Relay disabled 29778 | -7/Garrison | Build established: Pyromaniac-Tank 29818 | -7/Garrison | Discovered new exit (range 8) 30066 | -7/Garrison | Triggered checkpoint 30098 | -7/Garrison | Discovered new exit (range 15) 30192 | -7/Garrison | Garrison Relay disabled 30637 | -7/Garrison | Build established: Hauler-Tank 31112 | -7/Garrison | Entered Factory 31112 | -6/Factory | Accompanied by 1 ally 31112 | -6/Factory | Evolved 2 slots: Propulsion x2 31331 | -6/Factory | Identified exit to Lower Caves 31331 | -6/Factory | Identified exit to Extension 31955 | -6/Factory | Destroyed 7 combat bots 31991 | -6/Factory | Sucked down chute 31991 | -6/Factory | Entered Waste 32006 | -6/Waste | EMP discharged 32023 | -6/Waste | Spotted C-40 Crusher 32034 | -6/Waste | Crushed by Compactor (1 part destroyed, 1 dropped) 32040 | -6/Waste | Crushed by Compactor (1 part destroyed, 1 dropped) 32043 | -6/Waste | Crushed by Compactor (1 part destroyed, 2 dropped) 32046 | -6/Waste | Crushed by Compactor (0 parts destroyed, 1 dropped) 32046 | -6/Waste | Spotted C-40 Crusher 32046 | -6/Waste | Spotted C-40 Crusher 32049 | -6/Waste | Crushed by Compactor (1 part destroyed, 1 dropped) 32059 | -6/Waste | Spotted C-40 Crusher 32070 | -6/Waste | Crushed by Compactor (0 parts destroyed, 1 dropped) 32073 | -6/Waste | Crushed by Compactor (1 part destroyed, 1 dropped) 32073 | -6/Waste | Crushed by Compactor (0 parts destroyed, 1 dropped) 32074 | -6/Waste | Spotted C-40 Crusher 32080 | -6/Waste | Spotted C-40 Crusher 32100 | -6/Waste | Discovered new exit (range 11) 32104 | -6/Waste | Lost 8 parts (1p2n3u2w) 32106 | -6/Waste | EMP discharged 32106 | -6/Waste | System corruption reached 10% 32113 | -6/Waste | Entered Factory 32113 | -6/Factory | Self-destructed Last Messages --------------- 32067_ Arm. Huge Wheel destroyed. 32069_ Acquired Huge Storage Unit. 32070_ Imp. Utility Shielding crushed. 32070_ Plasma Rifle crushed. 32070_ Arm. Huge Wheel destroyed. 32071_ Relay Coupler [Grunt] crushed. 32073_ Huge Storage Unit crushed. 32073_ Imp. Cooling System crushed. 32073_ Recoil Nullifier crushed. 32080_ Gui. Plasma Cannon crushed. 32085_ Acquired Prototype Energy Cannon. 32096_ ALERT: Foreign system detected. Charging EMP. 32098_ NL9CNYEA 6JCOQV